Cogmind - Beta 10.2 @@@ ROGUE MODE // 2022.01.20 @ 14:24:04 Player: TLFP Result: Destroyed by S-27 Virus with Autogun Performance ------------- Evolutions (3) 1500 Regions Visited (6) 1200 Robots Destroyed (92) 460 Value Destroyed (3213) 3213 Prototype IDs (0) 0 Alien Tech Used (0) 0 Bonus (492) 492 TOTAL SCORE: 6865 Bonus ------- High Alert Combat Kills 342 Follower Combat Kills 150 Cogmind --------- Core Integrity 0/700 Matter 285/300 Energy 100/100 System Corruption 1% Temperature Cool (0) Movement Rolling (100) Location -7/Factory Parts ------- > --- POWER (1) -------- (None) > --- PROPULSION (3) --- Compact Wheel Armored Huge Wheel > --- UTILITY (6) ------ Small Storage Unit Enhanced Optical Array Advanced Signal Interpreter Hacking Suite > --- WEAPON (3) ------- Mining Claw Chainsword > --- INVENTORY (6) ---- Armored Huge Wheel Damper Plating System Restoration Module Peak State ------------ > --- POWER ------------ Antimatter Reactor > --- PROPULSION ------- Heavy Treads Titanium Leg > --- UTILITY ---------- Medium Storage Unit Enhanced Optical Array Advanced Signal Interpreter Hacking Suite System Shield System Restoration Module > --- WEAPON ----------- Wave Gun Improved Proton Missile Launcher Chainsword > --- INVENTORY -------- Armored Huge Wheel Advanced Sensor Array Improved Medium Armor Plating Damper Plating Recalibrator [Rating: 60] Favorites ----------- Power Antimatter Reactor Engine Ion Engine Power Core Micro Nuclear Core Reactor Antimatter Reactor Propulsion Armored Huge Wheel Treads Heavy Treads Leg Aluminum Leg Wheel Armored Huge Wheel Utility Small Storage Unit Device Improved Heat Sink Storage Small Storage Unit Processor Enhanced Optical Array Hackware Hacking Suite Protection Improved Medium Armor Plating Weapon Chainsword Energy Gun Wave Gun Energy Cannon Heavy Neutron Cannon Ballistic Gun Autogun Launcher Mini Grenade Launcher Slashing Weapon Chainsword Build | -11 -10 -9 -8 -7 -7 -7 ------- Run | Scr Mat Mat Mat Fac Was Fac Slots Evolved 6 | . . 2 2 2 . . Power . | . . . . . . . Propulsion 1 | . . . 1 . . . Utility 4 | . . 2 1 1 . . Weapon 1 | . . . . 1 . . Parts Attached 93 | 3 10 5 14 31 4 26 Power 9 | . 1 . 1 4 2 1 Engine 5 | . 1 . 1 2 . 1 Core 2 | . . . . 2 . . Reactor 2 | . . . . . 2 . Propulsion 22 | 2 2 2 4 7 1 4 Treads 7 | 1 1 2 . 2 1 . Leg 3 | . . . 2 . . 1 Wheel 12 | 1 1 . 2 5 . 3 Hover . | . . . . . . . Flight . | . . . . . . . Utility 30 | 1 1 2 3 9 . 14 Device 15 | . . . 1 6 . 8 Storage 4 | 1 1 1 . . . 1 Processor 2 | . . . . 1 . 1 Hackware 3 | . . . . 2 . 1 Protection 6 | . . 1 2 . . 3 Artifact . | . . . . . . . Weapon 32 | . 6 1 6 11 1 7 Energy Gun 13 | . 4 . 3 1 1 4 Energy Cannon 9 | . . . . 9 . . Ballistic Gun 4 | . 2 . 1 . . 1 Ballistic Cannon . | . . . . . . . Launcher 4 | . . 1 2 . . 1 Special Weapon . | . . . . . . . Impact Weapon . | . . . . . . . Slashing Weapon 2 | . . . . 1 . 1 Piercing Weapon . | . . . . . . . Special Melee Weapon . | . . . . . . . Unidentified Prototypes . | . . . . . . . Parts Lost 52 | . 6 4 12 12 . 18 Power 7 | . 1 . 1 3 . 2 Propulsion 11 | . 2 1 3 2 . 3 Utility 13 | . . 1 3 3 . 6 Weapon 21 | . 3 2 5 4 . 7 Highest Loss Streak 9 | . 6 3 9 2 . 4 Average Slot Usage (%) 86 | . 90 90 80 88 84 85 Engine 4 | . 11 11 8 4 . . Reactor 2 | . . . . . 3 6 Treads 7 | . 14 11 13 5 3 5 Wheel 7 | . 9 10 6 8 11 5 Device 9 | . . . 1 21 7 6 Storage 16 | . 28 33 24 15 15 9 Processor 7 | . . . . 6 7 11 Hackware 6 | . . . . . 15 13 Protection 2 | . . 7 5 . . 1 Energy Gun 6 | . 14 10 8 3 . 7 Energy Cannon 2 | . . . . 7 7 . Ballistic Gun 1 | . 10 . . . . 1 Launcher 3 | . . 5 8 5 . 2 Slashing Weapon 4 | . . . . 3 7 7 Naked Turns . | . . . . . . . Heaviest Build 54 | 15 23 35 37 54 50 50 Greatest Support 70 | 10 20 43 43 38 70 70 Greatest Overweight (x) 4 | 1 1 1 2 3 4 4 Average Overweight (x) . | 1 . . . . 1 . Largest Inventory Capacity 12 | 8 10 12 12 10 10 10 Average Capacity 9 | 6 8 11 11 10 10 8 Most Carried 12 | 6 10 12 12 10 10 10 Average Carried 8 | 6 5 10 9 7 8 8 Final Capacity 12 | 8 10 12 10 10 10 6 Final Carried 11 | 6 10 11 4 5 10 6 Class Distribution -------------------- 39% | Scavenger-Mutant 33% | Mutant 24% | Hacker-Mutant Dominant Class ---------------- Mutant | -10/Materials Mutant | -9/Materials Mutant | -8/Materials Scavenger-Mutant | -7/Factory Scavenger-Mutant | -7/Waste Hacker-Mutant | -7/Factory Resources | -11 -10 -9 -8 -7 -7 -7 ----------- Run | Scr Mat Mat Mat Fac Was Fac Matter Collected 1528 | 245 162 54 284 416 44 323 Remotely . | . . . . . . . Salvage Created 3519 | 85 310 454 479 826 185 1180 Parts 171 | 2 21 26 23 49 . 50 Haulers Intercepted 2 | . . . . . . 2 Recyclers Shooed 5 | . . . . 1 . 4 Parts Field Recycled . | . . . . . . . Retrieved Matter . | . . . . . . . Parts Self-Destructed . | . . . . . . . Prevented . | . . . . . . . Kills | -11 -10 -9 -8 -7 -7 -7 ------- Run | Scr Mat Mat Mat Fac Was Fac Combat Hostiles Destroyed 74 | . 10 16 14 21 1 12 Melee 7 | . . . . 3 . 4 Guns 24 | . 10 4 3 1 . 6 Cannons 16 | . . . . 15 1 . AOE 25 | . . 11 10 2 . 2 Classes Destroyed 14 | 1 2 4 1 2 1 3 Worker 1 | . . . . . . 1 Tunneler 1 | . . . 1 . . . Hauler 2 | . . . . . . 2 Recycler 8 | 1 . . 1 1 . 5 Mechanic 1 | . . . . . . 1 Operator 2 | . . . . 2 . . Watcher 3 | . . 1 . 1 . 1 Swarmer 16 | . 5 4 2 3 . 2 Grunt 39 | . 5 7 10 14 . 3 Brawler 4 | . . 2 . 1 . 1 Duelist 2 | . . 1 1 . . . Sentry 5 | . . 2 1 . . 2 Programmer 7 | . . . . 3 . 4 Compactor 1 | . . . . . 1 . Best Kill Streak 9 | 1 5 9 9 4 1 4 Combat Bots Only 8 | . 5 8 7 4 1 2 Max Kills in Single Turn 4 | 1 1 4 4 2 1 2 Gunslinging . | . . . . . . . Exploded 3 | . . 3 3 1 . 1 Melee 1 | . . . . 1 . 1 Uniques/NPCs Destroyed . | . . . . . . . Combat | -11 -10 -9 -8 -7 -7 -7 -------- Run | Scr Mat Mat Mat Fac Was Fac Damage Taken 6252 | . 911 490 1283 1663 22 1883 Core 1111 | . 169 67 170 310 . 395 Absorbed by Shields . | . . . . . . . Core Remaining (%) 71 | 100 32 83 69 . . . Volleys Fired 224 | 5 43 27 32 57 2 58 Largest 3 | 2 2 2 2 3 1 1 Hottest 220 | 60 100 90 96 220 110 81 Shots Fired 347 | 10 79 49 52 97 2 58 Gun 225 | 10 79 34 39 11 . 52 Cannon 82 | . . . . 80 2 . Launcher 40 | . . 15 13 6 . 6 Special . | . . . . . . . Kinetic 60 | 5 48 . 4 . . 3 Thermal 159 | . 6 . 17 91 2 43 Explosive 34 | . . 15 13 6 . . Electromagnetic 94 | 5 25 34 18 . . 12 Robot Hit Streak 17 | 1 7 10 17 10 2 10 Robot Miss Streak 5 | 5 5 2 3 5 . 2 Penetration Max . | . . . . . . . Secondary Targets 2 | . 1 . 1 . . . Max Gunslinging Chain 1 | . 1 . 1 . . . Shots Hit Robots 258 | 2 47 32 34 73 2 68 Core Hits 140 | 1 13 24 37 34 1 30 Critical Hits 11 | . 1 . 1 7 1 1 Critical Kills 4 | . 1 . . 3 . . Critical Parts Destroyed 7 | . . . 1 4 1 1 Melee Attacks 62 | . . . . 27 . 35 Impact . | . . . . . . . Slashing 62 | . . . . 27 . 35 Piercing . | . . . . . . . Sneak Attacks 9 | . . . . 2 . 7 Combat Hostiles . | . . . . . . . Follow-up Attacks 1 | . . . . . . 1 Damage Inflicted 9494 | 30 536 1220 1622 3413 81 2592 Guns 2382 | 30 533 289 415 140 . 975 Cannons 1902 | . . . . 1821 81 . Explosions 2999 | . . 931 1207 604 . 257 Melee 2208 | . . . . 848 . 1360 Ramming 3 | . 3 . . . . . Kinetic 381 | 15 306 . 32 . . 28 Thermal 3352 | . 48 . 394 1961 81 868 Explosive 2507 | . . 931 972 604 . . Electromagnetic 1043 | 15 179 289 224 . . 336 Impact . | . . . . . . . Slashing 2208 | . . . . 848 . 1360 Piercing . | . . . . . . . Highest Corruption 8 | . 1 . . 3 3 8 Average Corruption 2 | . 1 . . 1 3 3 Corruption Purged 8 | . . . . . . 8 Effects 47 | . . . . 7 5 35 Message Errors 14 | . . . . 4 2 8 Matter Fused 10 | . . . . . 2 8 Heat Flow Errors 4 | . . . . . 1 3 Energy Discharges 4 | . . . . . . 4 Data Loss (minor) 5 | . . . . 1 . 4 Data Loss (major) 3 | . . . . . . 3 Misfires 1 | . . . . . . 1 Targeting Errors 5 | . . . . 2 . 3 Weapon Failures 1 | . . . . . . 1 Overload Shots . | . . . . . . . Overflow Damage 594 | . . 8 13 290 . 283 Projectiles 73 | . . . . 73 . . Explosions 104 | . . 8 13 74 . 9 Melee 417 | . . . . 143 . 274 Knockbacks . | . . . . . . . Impact . | . . . . . . . Kinetic . | . . . . . . . Secondary . | . . . . . . . Self-Inflicted Damage 527 | . . 104 202 221 . . Shots 10 | . . 3 5 2 . . Rammed 4 | . 4 . . . . . Targets Rammed 4 | . 4 . . . . . Kicked . | . . . . . . . Crushed . | . . . . . . . Highest Temperature 466 | . 117 99 233 466 203 385 Average Temperature 87 | . 33 46 87 107 71 110 Received Heat Transfer 1671 | . 120 132 495 513 . 411 Siege Activations . | . . . . . . . Robots Corrupted 2 | . . 1 1 . . . Combat Hostiles 2 | . . 1 1 . . . Parts Fried 5 | . . 2 1 . . 2 Impact Corruptions . | . . . . . . . Robots Melted . | . . . . . . . Combat Hostiles . | . . . . . . . Parts Melted 3 | . . . 1 . . 2 Heat Transferred 3411 | . 148 . 633 1359 50 1221 Parts Sabotaged . | . . . . . . . Parts Stolen . | . . . . . . . Parts Stripped . | . . . . . . . Power Chain Reactions 3 | . . . 1 . . 2 Missiles Intercepted . | . . . . . . . Alert | -11 -10 -9 -8 -7 -7 -7 ------- Run | Scr Mat Mat Mat Fac Was Fac Peak Influence 625 | 5 253 476 619 625 254 281 Initial 281 | . 3 106 200 281 218 139 Average 240 | 2 154 228 418 429 210 104 Maximum Alert Level 2 | . 1 2 2 2 1 1 Low Security (%) 50 | 100 51 63 . 4 58 85 Level 1 29 | . 48 27 48 41 41 14 Level 2 20 | . . 9 51 54 . . Level 3 . | . . . . . . . Level 4 . | . . . . . . . Level 5 . | . . . . . . . High Security . | . . . . . . . Max Security . | . . . . . . . Squads Dispatched 21 | . 3 2 1 8 . 7 Investigation 8 | . . 2 1 3 . 2 Extermination 5 | . . . . 1 . 4 Reinforcement 7 | . 3 . . 3 . 1 Assault 1 | . . . . 1 . . Garrison . | . . . . . . . Intercept . | . . . . . . . Construction Impeded . | . . . . . . . Haulers Reinforced 1 | . . . . . . 1 Stealth | -11 -10 -9 -8 -7 -7 -7 --------- Run | Scr Mat Mat Mat Fac Was Fac Distress Signals 12 | . 5 3 3 . . 1 Communications Jammed 10 | . . . . 10 . . Distress Signals 10 | . . . . 10 . . Times Spotted 142 | . 20 22 19 37 6 38 Peak Tracking Total 7 | . 6 7 7 5 2 6 Tactical Retreats 17 | . 2 . 3 3 . 9 Traps | -11 -10 -9 -8 -7 -7 -7 ------- Run | Scr Mat Mat Mat Fac Was Fac Traps Triggered 11 | . 2 . . 7 . 2 Indirectly . | . . . . . . . Trap Hack Attempts . | . . . . . . . Triggered . | . . . . . . . Disarmed . | . . . . . . . Reprogrammed 1 | . . . . 1 . . Reused . | . . . . . . . Traps Extracted . | . . . . . . . Installed . | . . . . . . . Triggered . | . . . . . . . Machines | -11 -10 -9 -8 -7 -7 -7 ---------- Run | Scr Mat Mat Mat Fac Was Fac Machines Disabled 12 | . . 4 1 7 . . Max in Single Turn 2 | . . 2 1 2 . . Garrison Access 2 | . . . . 1 . 1 Machines Sabotaged . | . . . . . . . Garrisons Compromised . | . . . . . . . Overloaded Fab Kills . | . . . . . . . Fab Network Shutdowns . | . . . . . . . Hacking | -11 -10 -9 -8 -7 -7 -7 --------- Run | Scr Mat Mat Mat Fac Was Fac Machines Accessed 29 | . . 10 1 6 . 12 Terminals 15 | . . 8 1 1 . 5 Fabricators 4 | . . . . 2 . 2 Repair Stations 2 | . . . . . . 2 Recycling Units 2 | . . 1 . 1 . . Scanalyzers 4 | . . 1 . 1 . 2 Garrison Access 2 | . . . . 1 . 1 Total Hacks 83 | . . 31 4 21 . 27 Successful 53 | . . 22 3 13 . 15 Failed 30 | . . 9 1 8 . 12 Catastrophic 5 | . . 3 . 1 . 1 Database Lockouts . | . . . . . . . Manual 34 | . . 22 2 4 . 6 Terminals 45 | . . 25 4 4 . 12 Fabricators 7 | . . . . 4 . 3 Repair Stations 5 | . . . . . . 5 Recycling Units 5 | . . 1 . 4 . . Scanalyzers 18 | . . 5 . 8 . 5 Garrison Access 3 | . . . . 1 . 2 Terminal Hacks 9 | . . 4 1 1 . 3 Record 2 | . . 2 . . . . Part Schematic 3 | . . 2 . . . 1 Robot Schematic 1 | . . . . . . 1 Robot Analysis 2 | . . . 1 . . 1 Reprogram Traps 1 | . . . . 1 . . Fabricator Hacks 4 | . . . . 3 . 1 Load Schematic 1 | . . . . 1 . . Build 3 | . . . . 2 . 1 Repair Station Hacks 3 | . . . . . . 3 Scan Component 2 | . . . . . . 2 Repair 1 | . . . . . . 1 Recycling Unit Hacks . | . . . . . . . Scanalyzer 16 | . . 5 . 7 . 4 Insert Component 7 | . . 2 . 3 . 2 Analyze 9 | . . 3 . 4 . 2 Garrison Access Hacks 2 | . . . . 1 . 1 Seal Access 2 | . . . . 1 . 1 Unauthorized Hacks 19 | . . 13 2 1 . 3 Terminals 17 | . . 12 2 . . 3 Track 3 | . . 3 . . . . Botnet 11 | . . 8 1 . . 2 Disrupt 1 | . . . . . . 1 Operators 2 | . . 1 1 . . . Fabricators . | . . . . . . . Repair Stations . | . . . . . . . Recycling Units 1 | . . 1 . . . . Tunnel 1 | . . 1 . . . . Scanalyzers 1 | . . . . 1 . . Extract 1 | . . . . 1 . . Garrison Access . | . . . . . . . Data Cores Recovered . | . . . . . . . Used . | . . . . . . . Hacking Detections 25 | . . 9 1 5 . 10 Full Trace Events 5 | . . 1 1 2 . 1 Feedback Events 1 | . . . . 1 . . Corruption 1 | . . . . 1 . . Feedback Blocked . | . . . . . . . Robot Schematics Acquired 1 | . . . . . . 1 Robots Built 1 | . . . . . . 1 Matter 153 | . . . . . . 153 Time 40 | . . . . . . 40 Total Robot Build Rating 1 | . . . . . . 1 Part Schematics Acquired 12 | . . 4 . 5 . 3 Parts Built 4 | . . . . 4 . . Matter 468 | . . . . 468 . . Time 175 | . . . . 175 . . Total Part Build Rating 28 | . . . . 28 . . Parts Repaired 1 | . . . . . . 1 Time 35 | . . . . . . 35 Parts Recycled . | . . . . . . . Recycled Matter . | . . . . . . . Retrieved Matter . | . . . . . . . Retrieved Components . | . . . . . . . Parts Scanalyzed 7 | . . 2 . 3 . 2 Part Schematics Acquired 7 | . . 2 . 3 . 2 Parts Damaged 2 | . . . . 1 . 1 Bothacking | -11 -10 -9 -8 -7 -7 -7 ------------ Run | Scr Mat Mat Mat Fac Was Fac Used RIF Installer . | . . . . . . . Robots Hacked . | . . . . . . . Non-combat . | . . . . . . . Combat . | . . . . . . . Robot Hacks Applied . | . . . . . . . Relay Couplers Released . | . . . . . . . Robots Rewired . | . . . . . . . Allies Hacked . | . . . . . . . Hacks Repelled . | . . . . . . . Allies | -11 -10 -9 -8 -7 -7 -7 -------- Run | Scr Mat Mat Mat Fac Was Fac Total Allies 21 | . . . . . 20 1 Largest Group 20 | . . . . . 20 6 Highest-Rated Group 518 | . . . . . 518 181 Highest-Rated Ally 35 | . . . . . 35 33 Total Orders . | . . . . . . . Ally Attacks 197 | . . . . . 190 7 Total Damage 6385 | . . . . . 6301 84 Kills 15 | . . . . . 15 . Allies Corrupted . | . . . . . . . Allies Melted . | . . . . . . . Intel | -11 -10 -9 -8 -7 -7 -7 ------- Run | Scr Mat Mat Mat Fac Was Fac Robot Analysis Total 2 | . . . 1 . . 1 Derelict Logs Recovered . | . . . . . . . Drone Launches . | . . . . . . . Drone Recoveries . | . . . . . . . Exploration | -11 -10 -9 -8 -7 -7 -7 ------------- Run | Scr Mat Mat Mat Fac Was Fac Turns Passed 5293 | 41 314 611 347 1534 225 2221 Spaces Moved 2907 | 24 148 287 187 886 196 1179 Core . | . . . . . . . Treads 715 | . 13 278 48 7 9 360 Legs 2 | . . . . . . 2 Wheels 2190 | 24 135 9 139 879 187 817 Hover . | . . . . . . . Flight . | . . . . . . . Fastest Speed 90 | 90 90 110 110 90 90 100 Average Speed 120 | 90 102 175 124 105 103 122 Slowest Speed 190 | 90 160 180 160 180 160 190 Overloaded Moves . | . . . . . . . Propulsion Burnouts . | . . . . . . . Robots Hopped . | . . . . . . . Cave-ins Triggered . | . . . . . . . Exploration Rate (%) 33 | 3 32 40 24 22 88 26 Regions Visited 6 Branch Regions . Pre-discovered Areas 1 | . . 1 . . . . Known Exits Taken . | . . . . . . . Unknown Exits Taken 4 | 1 1 1 1 . . . Scrap Searched . | . . . . . . . Spaces Dug 16 | . . . 10 3 . 3 Terrain Destroyed 293 | . . 99 106 85 . 3 Melee 6 | . . . . 3 . 3 Projectile 20 | . . . . 20 . . AOE 267 | . . 99 106 62 . . Terrain Rammed . | . . . . . . . Walls Destroyed . | . . . . . . . Machines Disabled . | . . . . . . . Actions | -11 -10 -9 -8 -7 -7 -7 --------- Run | Scr Mat Mat Mat Fac Was Fac Total 4260 | 31 230 345 248 1348 217 1841 Wait 870 | . 14 21 11 307 3 514 Move 2902 | 23 147 286 186 886 195 1179 Hop . | . . . . . . . Pick Up 62 | . 10 5 5 24 6 12 Fast Attach 29 | 1 . 1 2 7 3 15 Attach 39 | . 6 3 12 14 . 4 Detach 1 | . . . . 1 . . Swap 25 | 2 4 1 . 10 1 7 Drop 36 | . 2 1 . 15 7 11 Fire 224 | 5 43 27 32 57 2 58 Melee 61 | . . . . 27 . 34 Ram . | . . . . . . . Kick . | . . . . . . . Crush 4 | . 4 . . . . . Escape Stasis 7 | . . . . . . 7 Rewire . | . . . . . . . Trap . | . . . . . . . Miscellaneous . | . . . . . . . Route ------- -11/Scrapyard -10/Materials -9/Materials (discovered 2 exits: *Mat / [*Min]) -8/Materials -7/Factory -7/Waste -7/Factory History --------- Turn | Location | Event 13 | -11/Scrapyard | Discovered new exit (range 3) 42 | -11/Scrapyard | Entered Materials 272 | -10/Materials | Core integrity fell below 50% 283 | -10/Materials | Lost 6 parts (1p2n3w) 309 | -10/Materials | Build established: Mutant 316 | -10/Materials | Discovered new exit (range 15) 356 | -10/Materials | Entered another Materials area 356 | -9/Materials | Evolved 2 slots: Utility x2 475 | -9/Materials | Discovered new exit (range 12) 815 | -9/Materials | Destroyed 8 combat bots 924 | -9/Materials | Discovered new exit (range 15) 947 | -9/Materials | Lost 3 parts (1n1u1w) 967 | -9/Materials | Entered another Materials area 967 | -8/Materials | Evolved 2 slots: Propulsion x1, Utility x1 1184 | -8/Materials | Lost 3 parts (1p2w) 1271 | -8/Materials | Destroyed 7 combat bots 1275 | -8/Materials | Lost 9 parts (3n3u3w) 1301 | -8/Materials | Discovered new exit (range 13) 1314 | -8/Materials | Entered Factory 1314 | -7/Factory | Evolved 2 slots: Utility x1, Weapon x1 1706 | -7/Factory | Fabricated Hvy. Neutron Cannon? 2114 | -7/Factory | First assault squad dispatched 2265 | -7/Factory | Fabricated Hvy. Neutron Cannon (x2) 2417 | -7/Factory | Build established: Scavenger-Mutant 2848 | -7/Factory | Sucked down chute 2848 | -7/Factory | Entered Waste 2849 | -7/Waste | Met a frightened Derelict 2861 | -7/Waste | Spotted C-40 Crusher 2874 | -7/Waste | Warlord forces began an assault 2889 | -7/Waste | Spotted C-40 Crusher 2890 | -7/Waste | Allies destroyed C-40 Crusher 2896 | -7/Waste | Spotted C-40 Crusher 2928 | -7/Waste | Spotted C-40 Crusher 2932 | -7/Waste | Spotted C-40 Crusher 2935 | -7/Waste | Allies destroyed C-40 Crusher 2950 | -7/Waste | Destroyed C-40 Crusher 2953 | -7/Waste | Spotted C-40 Crusher 2954 | -7/Waste | Allies destroyed C-40 Crusher 2962 | -7/Waste | Found Damper Plating 3043 | -7/Waste | Discovered new exit (range 12) 3073 | -7/Waste | Entered Factory 3073 | -7/Factory | Accompanied by 6 allies 3529 | -7/Factory | Core integrity fell below 50% 3561 | -7/Factory | Repaired Broken Imp. Proton Missile Launcher 3930 | -7/Factory | Build established: Hacker-Mutant 4818 | -7/Factory | Lost 4 parts (1n3w) 5187 | -7/Factory | Core integrity fell below 20% 5205 | -7/Factory | Fabricated R-06 Scavenger? 5294 | -7/Factory | Destroyed by S-27 Virus with Autogun Last Messages --------------- Access door sealed. 05205_ >> FABRICATOR: Completed R-06 Scavenger? 05221_ Acquired Mining Claw. 05236_ Chainsword follow-up attack on G-50 Soldier. 05236_ G-50 Soldier suffers critical hit. 05236_ Destroyed Carbon-fiber Leg. 05244_ Autogun destroyed. 05251_ Imp. Medium Armor Plating destroyed. 05259_ U-05 Engineer builds a Wall. 05261_ Sneak attack on U-05 Engineer. 05261_ Destroyed Lgt. Ion Engine. 05261_ Destroyed Wheel. 05275_ Connecting with Terminal... >>Trojan(Disrupt) Trojan loaded successfully. Testing... Disruption routine running. 05280_ Imp. Heat Sink destroyed. 05291_ S-27 Virus destroyed. 05292_ Imp. Deuterium Engine destroyed. Map ----- +----------------------------------------------------+ | #???????# # #??????????????????????? | | ^ ^ ##?????## # #??????????????????????? | | #?????# #??????????????????????? | | #?????# ^ #??????????????????????? | | #?????# #??????????????????????? | | #?????# ""##??????????????????????? | | ######## #?????# ""#???????????????????????? | | ???????? #?????+ ""#???????????????????????? | | ???????? #?????# T#???????????????????????? | | ???????? #?????# ""#???????????????????????? | | ?????# ###### ""#???????????????????????? | | ?????# ""#???????????????????????? | | ?????# ###### #???????????????????????? | | ##?????? ?????# * #???????????????????????? | | ???????? ???????+ ### #???????????????????????? | | ?????????????????## ##?# #???????????????????????? | | ??????????????????# ???# #???????????????????????? | | ??????????????????# ???# #???????????????????????? | | ??????????????????# ???# #???????????????????????? | | ??????????????????# ???# #???????????????????????? | | ?????????????????? ???# #???????????????????????? | | ??????????????????# ???# #???????????????????????? | | ??????????????????# ???#s#???????????????????????? | | ??????????????#####+####/####????????????????????? | | ??????????????# s%[ #????????????????????? | | ??????????????# @ #????????????????????? | | ??????????????# #????????????????????? | | ??????????????# #????????????????????? | | ??????????????# #????????????????????? | | ??????????????# #????????????????????? | | ??????????????# #????????????????????? | | ??????????????# t +????????????????????? | | ??????????????# #????????????????????? | | ??????????????# #????????????????????? | | ??????????????# +????????????????????? | | ??????????????###############????????????????????? | | ?????????????????????????????????????????????????? | | ?????????????????????????????????????????????????? | | ?????????????????????????????????????????????????? | | ?????????????????????????????????????????????????? | | ?????????????????????????????????????????????????? | | ?????????????????????????????????????????????????? | | ?????????????????????????????????????????????????? | | ?????????????????????????????????????????????????? | | ?????????????????????????????????????????????????? | | ?????????????????????????????????????????????????? | | ?????????????????????????????????????????????????? | | ?????????????????????????????????????????????????? | | ?????????????????????????????????????????????????? | | | +----------------------------------------------------+ Best States ------------- Heat Dissipation 76 Energy Generation 21 Energy Capacity 325 Matter Stores 300 Matter Capacity 300 Sight Range 22 Robot Scan Range 20 Terrain Scan Density 10 Jamming Range 8 Armor Coverage 300 Evasion (%) 42 Recoil Reduction 2 Energy Filtering 30 Offensive Hacking 20 Defensive Hacking 10 Item Schematics ----------------- Imp. Sensor Array | -9/Materials | Hacked Imp. Signal Interpreter | -9/Materials | Hacked Mni. Grenade Launcher | -9/Materials | Scanalyzed Hvy. EM Pulse Gun | -9/Materials | Scanalyzed Hvy. Neutron Cannon | -7/Factory | Scanalyzed Lightning Gun | -7/Factory | Scanalyzed Arm. Huge Wheel | -7/Factory | Scanalyzed Energy Filter | -7/Factory | Extracted Imp. Medium Armor Plating | -7/Factory | Extracted Imp. Proton Missile Launcher | -7/Factory | Scanalyzed System Restoration Module | -7/Factory | Scanalyzed Rnf. Fission Core | -7/Factory | Hacked Robot Schematics ------------------ Y-54 Guardian | -7/Factory | Hacked Fabricated ------------ Hvy. Neutron Cannon | x2 | -7/Factory | Preloaded Hvy. Neutron Cannon | x2 | -7/Factory R-06 Scavenger | x1 | -7/Factory | Preloaded Alien Tech Used ----------------- None Achievements -------------- None Challenges ------------ None Game ------ Seed StructuralSmartbombProjector Manual? 0 Play Time 01:02:15 Cumulative 83.3 hours Start 2022.01.10 @ 19:31:39 End 2022.01.20 @ 14:24:04 Sessions 5 Manual Loads 0 Difficulty Rogue Special Mode None Game No. 56 Rogue 19 Adventurer 32 Explorer 5 Win Type - Total 1 Types 1/0/0/0/0/0/0/0/0 Lore% 53 Gallery% 58 Achievement% 49 Wizard Run 0 Options --------- ASCII 0 Keyboard 0 Movement Mouse Keybinds 0 Fullscreen 1 Font 18/SmallcapsGlow Map View 76x50 Tactical HUD 1 Map Filters NONE Filters NONE Steam 1 RUN: 35812619-1806-4ad8-979a-5263baded8f0